{"text_format":"1","workbook":"xlsx","n_sheets":27,"sheets":["Начало","Команды","М. 2006-2008","ж. 2006-2008","М.2009 и младше","Лист1","Подростки Муж. скорость","Младшие Муж. скорость","Средние Муж. скорость","Старшие Муж. скорость","Взрослые Муж. скорость","Подростки Жен. скорость","Младшие Жен. скорость","Средние Жен. скорость","Старшие Жен. скорость","Взрослые Жен. скорость","Модуль2","Модуль1","Модуль7","Модуль3","Модуль4","Модуль5","Модуль6","Модуль8","Модуль9","Диалог1","Лист2"],"not_rendered":{"charts":0,"images":0,"macros":1,"external_links":0,"defined_names":10,"comments":0,"pivot_tables":0},"unopened":[{"sheet":"Модуль2","index":16,"reason":"part_missing"},{"sheet":"Модуль1","index":17,"reason":"part_missing"},{"sheet":"Модуль7","index":18,"reason":"part_missing"},{"sheet":"Модуль3","index":19,"reason":"part_missing"},{"sheet":"Модуль4","index":20,"reason":"part_missing"},{"sheet":"Модуль5","index":21,"reason":"part_missing"},{"sheet":"Модуль6","index":22,"reason":"part_missing"},{"sheet":"Модуль8","index":23,"reason":"part_missing"},{"sheet":"Модуль9","index":24,"reason":"part_missing"},{"sheet":"Диалог1","index":25,"reason":"not_a_worksheet"}],"bounds":{"document_bytes":16777216,"sheet_cells":100000,"rows_first":2000,"rows_last":500,"rows_between":2000,"halvings":0,"cell_chars":16384,"cell_head_chars":4096},"cells_cut":0,"cells_raw":0,"read":"whole","date_system":"1900"}

{"sheet":"Начало","index":0,"n_rows":19,"n_cols":3,"rows_kept":19,"cut":false,"hidden":false,"merged":[]}
[]
[]
[]
[]
[]
[]
[]
[]
[]
[]
[]
[]
[]
[]
[]
[]
[]
[]
[null,null," "]

{"sheet":"Команды","index":1,"n_rows":9,"n_cols":7,"rows_kept":9,"cut":false,"hidden":false,"merged":[]}
[]
[]
["№","Команда","Город","Тренер-представитель",null,"2005-2002","Подростки М"]
[1,"Арба","Томск",null,null,null,"Подростки Ж"]
[2,"Кедр","Томск",null,null,"2001-2000","Юноши"]
[3,"ДЮСШ-16","Томск",null,null,null,"Девушки"]
[4,null,null,null,null,"1999-1998","Юноши"]
[5,null,null,null,null,null,"Девушки"]
[6,null,null,null,null,null,"ИТОГО"]

{"sheet":"М. 2006-2008","index":2,"n_rows":29,"n_cols":16,"rows_kept":29,"cut":false,"hidden":false,"merged":[[4,12,4,14],[4,15,5,15],[4,0,5,0],[4,1,5,1],[4,3,5,3],[4,4,5,4],[4,8,4,10]]}
[]
[]
[null,null,"ИТОГОВЫЙ ПРОТОКОЛ"]
[null,null,"Мальчики 2006-2008"]
["Место","Фамилия, Имя","Год","разр.","Команда","Квалификация 1",null,null,"Квалификация 2",null,null,null,"Финал",null,null,"Вып. Разр."]
[null,null,"рожд.",null," ","рез.","+","Балл","рез.","+","Балл","Рейтинг","рез.","+","время"]
[1,"Пуков Пётр","2006","б\\р","Юнис","TOP",null,9.5,"TOP",null,4.5,{"$f":"(H7*K7)^0.5","v":6.5383484153110105},14]
[2,"Ладыгин Артур",2006,"б\\р","Туристенок","TOP",null,9.5,"TOP",null,4.5,{"$f":"(H8*K8)^0.5","v":6.5383484153110105},10]
[3,"Седунов Яромир","2007","б\\р","Созвездие","TOP",null,9.5,"TOP",null,4.5,{"$f":"(H9*K9)^0.5","v":6.5383484153110105},9]
[4,"Цыганов Всеволод","2007","б\\р","Искра","TOP",null,9.5,"TOP",null,4.5,{"$f":"(H10*K10)^0.5","v":6.5383484153110105},7]
[4,"Черников Платон","2007","б\\р","Созвездие","TOP",null,9.5,"TOP",null,4.5,{"$f":"(H11*K11)^0.5","v":6.5383484153110105},7]
[6,"Сурков Николай","2007","б\\р","Созвездие","TOP",null,9.5,"TOP",null,4.5,{"$f":"(H12*K12)^0.5","v":6.5383484153110105},6]
[6,"Сухомлин Матвей","2007","б\\р","Юнис","TOP",null,9.5,"TOP",null,4.5,{"$f":"(H13*K13)^0.5","v":6.5383484153110105},6]
[6,"Помигуев Игорь","2008","б\\р","Арба","TOP",null,9.5,"TOP",null,4.5,{"$f":"(H14*K14)^0.5","v":6.5383484153110105},6]
[6,"Захарчук Данил",2007,"б\\р","Лукоморье","TOP",null,9.5,12,"+",10,{"$f":"(H15*K15)^0.5","v":9.7467943448089631},6]
[10,"Чернышёв Донат",2007,"б\\р","Крылатый","TOP",null,9.5,12,"+",10,{"$f":"(H16*K16)^0.5","v":9.7467943448089631},0]
[11,"Бондаренко Роман ",2008,"б\\р","Next","TOP",null,9.5,12,null,13.5,{"$f":"(H17*K17)^0.5","v":11.324751652906125}]
[12,"Юняев Тимофей",2008,"б\\р","Лукоморье","TOP",null,9.5,12,null,13.5,{"$f":"(H18*K18)^0.5","v":11.324751652906125}]
[13,"Махмудов Руслан","2007","б\\р","Созвездие","TOP",null,9.5,11,null,16.5,{"$f":"(H19*K19)^0.5","v":12.519984025548915}]
[14,"Соколов Всеволод","2007","б\\р","Крылатый","TOP",null,9.5,11,null,16.5,{"$f":"(H20*K20)^0.5","v":12.519984025548915}]
[15,"Никитин Иван ","2008","б\\р","Next","TOP",null,9.5,9,"+",18,{"$f":"(H21*K21)^0.5","v":13.076696830622021}]
[16,"Петров Егор",2007,"б\\р","Лукоморье","TOP",null,9.5,8,"+",19,{"$f":"(H22*K22)^0.5","v":13.435028842544403}]
[17,"Балдаков Алексей",2008,"б\\р","Крылатый","TOP",null,9.5,6,"+",22,{"$f":"(H23*K23)^0.5","v":14.456832294800961}]
[18,"Бельц Юрий","2007","б\\р","Фаворит","TOP",null,9.5,6,"+",22,{"$f":"(H24*K24)^0.5","v":14.456832294800961}]
[19,"Рудык Андрей","2006","б\\р","Созвездие",5,"+",22,12,"+",10,{"$f":"(H25*K25)^0.5","v":14.832396974191326}]
[20,"Щёкин Тимур","2007","б\\р","Фаворит",7,"+",19,12,null,13.5,{"$f":"(H26*K26)^0.5","v":16.015617378046965}]
[21,"Ванюнин Андрей","2008","б\\р","Арба",7,null,20,12,null,13.5,{"$f":"(H27*K27)^0.5","v":16.431676725154983}]
[22,"Байдали Михаил",2007,"б\\р","Фаворит",4,"+",23,7,null,20,{"$f":"(H28*K28)^0.5","v":21.447610589527216}]
[23,"Диев Владислав","2006","б\\р","Крылатый",6,"+",21,6,"+",22,{"$f":"(H29*K29)^0.5","v":21.494185260204677}]

{"sheet":"ж. 2006-2008","index":3,"n_rows":36,"n_cols":16,"rows_kept":36,"cut":false,"hidden":false,"merged":[[4,15,5,15],[4,0,5,0],[4,4,5,4],[4,1,5,1],[4,12,4,14]]}
[]
[null,null,"ИТОГОВЫЙ ПРОТОКОЛ"]
[null,null,"Девочки 2006-2008"]
[]
["Место","Фамилия, Имя","Год",null,"Команда","Квалификация 1",null,null," Квалификация 2",null,null,null,"Финал",null,null,"Вып. Разр."]
[null,null,"рожд.","разр.",null,"рез.","+","Балл","рез.","+","Балл","Рейтинг","рез.","+","Время"]
[1,"Дубровина Татьяна","2006","б\\р","Арба","TOP",null,2.5,11,null,18,{"$f":"(H7*K7)^0.5","v":6.7082039324993694},"TOP"]
[2,"Мелентович Мила","2006","б\\р","Юнис","TOP",null,2.5,"TOP",null,8.5,{"$f":"(H8*K8)^0.5","v":4.6097722286464435},14]
[3,"Козьменко Лиза","2007","б\\р","Юнис",10,null,5,"TOP",null,8.5,{"$f":"(H9*K9)^0.5","v":6.5192024052026492},13]
[4,"Меркушева Евгения","2007","б\\р","Арба",8,null,"9","TOP",null,8.5,{"$f":"(H10*K10)^0.5","v":8.7464278422679502},9,"+"]
[5,"Чернобай Анастасия ","2007","б\\р","Искра","TOP",null,2.5,"TOP",null,8.5,{"$f":"(H11*K11)^0.5","v":4.6097722286464435},8]
[6,"Хижняк Елизавета  ","2008","б\\р","Next",7,null,"12,10","TOP",null,8.5,{"$f":"(H12*K12)^0.5","v":10.141498903022176},8]
[7,"Боровкова Валерия",2007,"б\\р","Лукоморье",7,null,"12,5","TOP",null,8.5,{"$f":"(H13*K13)^0.5","v":10.307764064044152},4]
[8,"Гончар Ирина",2008,"б\\р","Лукоморье",9,"+","6","TOP",null,8.5,{"$f":"(H14*K14)^0.5","v":7.1414284285428504},3,"+"]
[9,"Рахманова Софья","2008","б\\р","Фаворит","TOP",null,2.5,"TOP",null,8.5,{"$f":"(H15*K15)^0.5","v":4.6097722286464435},2,"+"]
[10,"Правосуд Ева",2008,"б\\р","Искра",9,null,"7,5","TOP",null,8.5,{"$f":"(H16*K16)^0.5","v":7.9843597113356557},2]
[11,"Бойко Алиса","2007","б\\р","Туристенок",7,null,"12,6","TOP",null,8.5,{"$f":"(H17*K17)^0.5","v":10.348912986396204}]
[12,"Камнева Ангелина","2007","б\\р","Арба",7,null,"12,7","TOP",null,8.5,{"$f":"(H18*K18)^0.5","v":10.38989894079822}]
[13,"Шевелёва Дарья","2007","б\\р","Крылатый",7,null,"12,8","TOP",null,8.5,{"$f":"(H19*K19)^0.5","v":10.430723848324238}]
[14,"Николаевская Анастасия","2008","б\\р","Фаворит",7,null,"12,9","TOP",null,8.5,{"$f":"(H20*K20)^0.5","v":10.471389592599447}]
[15,"Гуляева Мария","2006","б\\р","Юнис",5,"+","16","TOP",null,8.5,{"$f":"(H21*K21)^0.5","v":11.661903789690601}]
[16,"Верхотурова Ангелина","2007","б\\р","Фаворит",9,null,"7,5",3,null,19,{"$f":"(H22*K22)^0.5","v":11.937336386313323}]
[17,"Лаухина Марина","2008","б\\р","Фаворит",5,null,"17","TOP",null,8.5,{"$f":"(H23*K23)^0.5","v":12.020815280171307}]
[18,"Латышова Анастасия","2008","б\\р","Арба",3,null,"18","TOP",null,8.5,{"$f":"(H24*K24)^0.5","v":12.369316876852981}]
[19,"Любченко Софья","2007","б\\р","Арба",2,null,"19","TOP",null,8.5,{"$f":"(H25*K25)^0.5","v":12.708265027138834}]
[]
[]
[]
[]
[]
[]
[]
[]
[]
[]
[null,null,null,null,null,"T"]

{"sheet":"М.2009 и младше","index":4,"n_rows":9,"n_cols":16,"rows_kept":9,"cut":false,"hidden":false,"merged":[[4,15,5,15],[4,0,5,0],[4,1,5,1],[4,3,5,3],[4,4,5,4],[4,11,5,11]]}
[]
[]
[null,null,"ИТОГОВЫЙ ПРОТОКОЛ"]
[null,null,"Мальчики 2009 и младше"]
["Место","Фамилия, Имя","Год","разр.","Команда","Квалификация 1",null,null,"Квалификация 2",null,null,"Рейтинг","Финал",null,null,"Вып. Разр."]
[null,null,"рожд.",null," ","рез.","+","Балл","рез.","+","Балл",null,"рез.","+","Время"]
[1,"Акимов Семен ","2009","б\\р","Искра",7,null,9]
[2,"Щербин Владимир",2009,"б\\р","Лукоморье"]
[3,"Щербин Дмитрий",2009,"б\\р","Лукоморье"]

{"sheet":"Лист1","index":5,"n_rows":46,"n_cols":11,"rows_kept":46,"cut":false,"hidden":true,"merged":[]}
[2,"Рудько Семен",87,"КМС","ДЮСШ-16","TOP",null,1]
[6,"Понамарев Стас",85,"КМС","ДЮСШ-16","TOP",null,1]
[13,"Копытов Федор",88,"КМС","ДЮСШ-16","TOP",null,1]
[14,"Дощинский Максим",85,"КМС","ДЮСШ-16","TOP",null,1]
[17,"Михалев Евгений",81,"б/р","Ариадна","TOP",null,1]
[18,"Параев Сергей",89,"КМС","ДЮСШ-16","TOP",null,1]
[21,"Кобелев Денис",82,1,"ДЮСШ-16","TOP",null,1]
[8,"Карих Дима",72,"КМС","Ветеран",21,null,8]
[9,"Кузнецов Александр",84,"б/р","Ариадна",21,null,8]
[20,"Черкашин Иван",85,"б/р","Ариадна",20,null,10]
[10,"Петухов Виталий",88,1,"ДЮСШ-16",19,"+",11]
[11,"Мякшин Андрей",87,"б/р","Ариадна",19,"+",11]
[12,"Аксименко Витя",88,1,"Арба",19,"+",11]
[16,"Прокопенко Кирилл",89,"КМС","ДЮСШ-16",19,"+",11]
[1,"Жигалов Федор",89,"б/р","Ариадна",19,null,15]
[4,"Татарчуков Саша",91,3,"ДЮСШ-16",19,null,15]
[15,"Мишков Андрей",70,"б/р","Ветеран",19,null,15]
[7,"Чернов Павел",null,"б/р","Ариадна",18,"+",18]
[5,"Новиков Анатолий",89,"б/р","ДЮСШ-16",18,null,19]
[19,"Осмольский Александр",87,"б/р","Арба",15,"+",20]
[3,"Лебедев Александр",87,"б/р","Ариадна",4,null,21]
[1,"Мочалов Иван",82,"б/р","Ариадна",null,null,null,"TOP",null,1]
[2,"Асланов Руслан",89,3,"ДЮСШ-16",null,null,null,"TOP",null,1]
[3,"Терехин Василий",84,"КМС","ТАКТ",null,null,null,"TOP",null,1]
[4,"Жуков Сергей",79,"б/р","Ариадна",null,null,null,"TOP",null,1]
[7,"Морев Артем",89,"КМС","ДЮСШ-16",null,null,null,"TOP",null,1]
[9,"Сидорко Сережа",89,null,"ДЮСШ-16",null,null,null,"TOP",null,1]
[15,"Петин Ваня",null,2,"ТАКТ",null,null,null,"TOP",null,1]
[16,"Назаров Никита",84,"КМС","Сам",null,null,null,"TOP",null,1]
[17,"Федотов Александр",76,"б/р","ТАКТ",null,null,null,"TOP",null,1]
[18,"Филатьев Олег",79,"КМС","Альпклуб",null,null,null,"TOP",null,1]
[19,"Алтухов Антон",84,1,"Ариадна",null,null,null,"TOP",null,1]
[20,"Паршин Антон",81,2,"Барнаул",null,null,null,"TOP",null,1]
[22,"Ложкомоев Саша",82,1,"ДЮСШ-16",null,null,null,"TOP",null,1]
[25,"Новоселов Саша",84,"КМС","ДЮСШ-16",null,null,null,"TOP",null,1]
[5,"ДерешевДанил",86,"б/р","Ариадна",null,null,null,16,null,15]
[6,"Шестаков Василий",88,"б/р","ДЮСШ-16",null,null,null,16,null,15]
[11,"Тулаев Денис",74,"б/р","ТАКТ",null,null,null,16,null,15]
[8,"Субботин Андрей",89,"2ю","ДЮСШ-16",null,null,null,15,null,18]
[10,"Соловьев Тимофей",89,1,"ДЮСШ-16",null,null,null,15,null,18]
[23,"Варюшкин Саша",88,"б/р","ДЮСШ-16",null,null,null,15,null,18]
[14,"Свиридов Костя",82,"б/р","Ариадна",null,null,null,14,null,21]
[13,"Попов Антон",87,"б/р","Кедр",null,null,null,12,null,22]
[12,"Седлецкий Захар",83,"б/р","Альпклуб",null,null,null,11,null,23]
[21,"Калинин Павел",89,"б/р","Арба",null,null,null,11,null,23]
[24,"Гуренков Костя",77,"б/р","Альпклуб",null,null,null,"н/я"]

{"sheet":"Подростки Муж. скорость","index":6,"n_rows":45,"n_cols":16,"rows_kept":45,"cut":false,"hidden":true,"merged":[]}
[]
[null,null,null,null,"ИТОГОВЫЙ ПРОТОКОЛ"]
[null,null,null,null,"юноши младшая группа"]
[]
["Итог.","Фамилия имя отчество","Год","спорт."," "," ",null,"1/4 финала",null,null,"1/2 финала",null,null,"финал",null,"Вып."]
[null,"год рождения","Рожд.","разр.","Город","Тренер","бал.","прим","место","бал.","прим","место","бал.","прим","место","разр."]
[null,"Рудько Семен",87,1,"Томск","Афанасьева"]
[null,"Романов Рома",87,"1ю","Томск","Афанасьева"]
[null,"Пушкарев Дима",87,"б/р","Томск","Афанасьева"]
[null,"Мельников Б",87,"б/р","Томск","Афанасьва"]
[null,"Марков паша",88,"2ю","Томск","Афанасьева"]
[null,"Кошкаров Егор",89,"2ю","Томск","Афанасьева"]
[null,"Юлдашев Тимур",89,2,"Томск","Афанасьева"]
[null,"Ефимов Женя",87,"б.р.","Кемерово","Ильины"]
[null,"Козик Руслан",87,"2 юн","Кемерово","Ильины"]
[null,"Орлов Антон",88,"б.р.","Кемерово","Ильины"]
[null,"Орлов Саша",90,"б.р.","Кемерово","Ильины"]
[null,"Догужский Костя",89,"б.р.","Томск","Лунева"]
[null,"Чеканцев Александр",89,"1 юн","Томск","Лунева"]
[null,"Лещев Владимир",88,"б.р.","Томск","Лунева"]
[null,"Санаров Денис",88,"б.р.","Томск","Лунева"]
[null,"Борцов Захар",87,"б.р.","Томск","Лунева"]
[null,"Борцов Владимир",87,"б.р.","Томск","Лунева"]
[null,"Крымов Алексей",87,2,"Томск","Лунева"]
[null,"Поздеев Саша",91,"б.р.","Новосибирск","Бурдакова"]
[null,"Фаге Алексей",87,"б.р.","Новосибирск","Бурдакова"]
[null,"Попов Максим",87,"б.р.","Новосибирск","Бурдакова"]
[null,"Попов Максим",87,"б.р.","Томск","Немцева"]
[null,"Колбин Петя",87,"б.р.","Томск","Немцева"]
[null,"Сафроненко Андрей",87,"2 юн","Томск","Немцева"]
[null,"Байгулов Андрей",87,3,"Томск","Немцева"]
[null,"Васильев Алексей",87,2,"Томск","Немцева"]
[null,"Аршан Женя",87,"б.р.","Кемерово","Бушуева"]
[null,"Чесноков Саша",87,"б.р.","Кемерово","Бушуева"]
[null,"Мышкевич Саша",88,"б.р.","Кемерово","Бушуева"]
[null,"Лукин Саша",87,"2 юн","Томск","Карих"]
[null,"Хасанов Каиль",87,"б.р.","Томск","Карих"]
[null,"Тихонов Женя",87,"б.р.","Томск","Карих"]
[null,"Хлыстов Миша",88,"б.р.","Томск","Карих"]
[null,"Овчинников Вова",89,"б.р.","Томск","Карих"]
[null,"Морозов Илья",87,"б.р.","Бийск","Пляскин"]
[null,"Сенкевич Сергей",89,"б.р.","Томск","Шлехт"]
[null,"Прокопенко Кирилл",89,3,"Томск","Шлехт"]
[null,"Шурупов Слава",88,"б.р.","Томск","Шлехт"]
[null,"Попов Женя",88,"б.р.","Томск","Шлехт"]

{"sheet":"Младшие Муж. скорость","index":7,"n_rows":34,"n_cols":16,"rows_kept":34,"cut":false,"hidden":true,"merged":[]}
[]
[null,null,null,null,"ИТОГОВЫЙ ПРОТОКОЛ"]
[null,null,null,null,"юноши младшая группа"]
[]
["Итог.","Фамилия имя отчество","Год","спорт."," "," ",null,"1/4 финала",null,null,"1/2 финала",null,null,"финал",null,"Вып."]
[null,"год рождения","Рожд.","разр.","Город","Тренер","бал.","прим","место","бал.","прим","место","бал.","прим","место","разр."]
[null,"Климов Коля",86,2,"Томск","Афанасьева"]
[null,"Жолбосынов Айбек",85,"б/р","Томск","Афанасьева"]
[null,"Мустафин Эльдар",85,"2ю","Томск","Афанасьева"]
[null,"Коротков Миша",85,"КМС","Томск","Афанасьева"]
[null,"Дощинский Максим",85,"кмс","Томск","Афанасьева"]
[null,"Чиндин Сергей",85,1,"Кемерово","Ильины"]
[null,"Лумнов Женя",86,"б.р.","Кемерово","Ильины"]
[null,"Котенко Алексей",86,"б.р.","Кемерово","Ильины"]
[null,"Павлович Николай",85,1,"Томск","Лунева"]
[null,"Чеканцев Никита",85,1,"Томск","Лунева"]
[null,"Пономарев Станислав",85,"КМС","Томск","Лунева"]
[null,"Загвоздин Константин",85,"КМС","Томск","Лунева"]
[null,"Дуплинский Георгий",86,1,"Новокузнецк","Санников"]
[null,"Романцев Максим",85,2,"Новокузнецк","Санников"]
[null,"Коллегов Иван",86,3,"Новосибирск","Бурдакова"]
[null,"Чаюн Игорь",86,2,"Новосибирск","Бурдакова"]
[null,"Максимов Василий",86,"б.р.","Новосибирск","Бурдакова"]
[null,"Качан Алексей",86,"б.р.","Томск","Немцева"]
[null,"Смуткин Егор",86,1,"Томск","Шлехт"]
[null,"Смуткин Андрей",85,"КМС","Томск","Шлехт"]
[null,"Шлехт Егор",85,1,"Томск","Шлехт"]
[null,"Тихонов Егор",85,"б.р.","Томск","Карих"]
[null,"Камышный Толя",86,"б.р.","Томск","Карих"]
[null,"Григорьев Тимофей",85,1,"Бийск","Пляскин"]
[null,"Панюков Паша",86,"б.р.","Кемерово","Бушуева"]
[null,"Кожемяко Эдик",86,"КМС","Кемерово","Бушуева"]
[null,"Деменев Андрей",85,"КМС","Кемерово","Бушуева"]
[null,"Новоселов Женя",86,1,"Томск","Шлехт"]

{"sheet":"Средние Муж. скорость","index":8,"n_rows":26,"n_cols":16,"rows_kept":26,"cut":false,"hidden":true,"merged":[]}
[]
[null,null,null,null,"ИТОГОВЫЙ ПРОТОКОЛ"]
[null,null,null,null,"юноши младшая группа"]
[]
["Итог.","Фамилия имя отчество","Год","спорт."," "," ",null,"1/4 финала",null,null,"1/2 финала",null,null,"финал",null,"Вып."]
[null,"год рождения","Рожд.","разр.","Город","Тренер","бал.","прим","место","бал.","прим","место","бал.","прим","место","разр."]
[null,"Назаров Никита",84,1,"Томск","Афанасьева"]
[null,"Коротков Александр",83,"кмс","Томск","Афанасьева"]
[null,"Александров",84,"КМС","Кемерово","Ильины"]
[null,"Демахин Алеквей",84,"КМС","Кемерово","Ильины"]
[null,"Демахин Алеквей",84,"КМС","Кемерово","Ильины"]
[null,"Ильин Евгений",83,"КМС","Томск","Лунева"]
[null,"Кропотов Андрей",84,"б.р.","Новокузнецк","Санников"]
[null,"Чистяков Сергей",84,"б.р.","Новокузнецк","Санников"]
[null,"Травников Алексей",83,1,"Новокузнецк","Санников"]
[null,"Павлов Иван",84,1,"Новосибирск","Бурдакова"]
[null,"Зверев Олег",84,1,"Томск","Шлехт"]
[null,"Загальский Олег",83,"КМС","Томск","Шлехт"]
[null,"Огурцов Алеша",84,2,"Кемерово","Бушуева"]
[null,"Гуляев Паша",84,"КМС","Кемерово","Бушуева"]
[null,"Залетов Игорь",83,"КМС","Кемерово","Бушуева"]
[null,"Морозов Семен",84,1,"Бийск","Пляскин"]
[null,"Саландо Слава",83,"б.р.","Томск","Карих"]
[null,"Корнев Сергей",83,"б.р.","Томск","Перов"]
[null,"Бочкарев Женя",83,1,"Барнаул","Язовский"]
[null,"Мартынов Егор",84,1,"Барнаул","Язовский"]

{"sheet":"Старшие Муж. скорость","index":9,"n_rows":14,"n_cols":16,"rows_kept":14,"cut":false,"hidden":true,"merged":[]}
[]
[null,null,null,null,"ИТОГОВЫЙ ПРОТОКОЛ"]
[null,null,null,null,"юноши младшая группа"]
[]
["Итог.","Фамилия имя отчество","Год","спорт."," "," ",null,"1/4 финала",null,null,"1/2 финала",null,null,"финал",null,"Вып."]
[null,"год рождения","Рожд.","разр.","Город","Тренер","бал.","прим","место","бал.","прим","место","бал.","прим","место","разр."]
[null,"Борисов А.",82,1,"Томск","Афанасьева"]
[null,"Борисов А.",82,1,"Томск","Афанасьева"]
[null,"Красов Алексей",82,"КМС","Томск","Лунева"]
[null,"Сайгаш Дима",82,"КМС","Томск","Шлехт"]
[null,"Зуев Василий",82,"КМС","Томск","Шлехт"]
[null,"Сафонов Алексей",81,"КМС","Томск","Шлехт"]
[null,"Кучеров Виктор",81,"КМС","Кемерово","Бушуева"]
[null,"Шадринцев Артем",81,"КМС","Бийск","Пляскин"]

{"sheet":"Взрослые Муж. скорость","index":10,"n_rows":21,"n_cols":16,"rows_kept":21,"cut":false,"hidden":true,"merged":[]}
[]
[null,null,null,null,"ИТОГОВЫЙ ПРОТОКОЛ"]
[null,null,null,null,"юноши младшая группа"]
[]
["Итог.","Фамилия имя отчество","Год","спорт."," "," ",null,"1/4 финала",null,null,"1/2 финала",null,null,"финал",null,"Вып."]
[null,"год рождения","Рожд.","разр.","Город","Тренер","бал.","прим","место","бал.","прим","место","бал.","прим","место","разр."]
[null,"Алексеев Игорь",80,"кмс","томск"]
[null,"Гречушкин Саша",80,1,"Новосибирск","Бурдакова"]
[null,"Алексеев Игорь",80,"КМС","Новосибирск","Бурдакова"]
[null,"Ксенчук Андрей",80,"б.р.","Новосибирск","Бурдакова"]
[null,"Мануйлов Виктор",80,3,"Новосибирск","Бурдакова"]
[null,"Чащин Дима",79,3,"Томск","Шлехт"]
[null,"Залетов Андрей",80,"КМС","Кемерово","Бушуева"]
[null,"Алексеев Игорь",80,"КМС","Новосибирск","Бурдакова"]
[null,"Ксенчук Андрей",80,"б.р.","Новосибирск","Бурдакова"]
[null,"Гречушкин Александр",80,1,"Новосибирск","Бурдакова"]
[null,"Мануйлов Виктор",80,2,"Новосибирск","Бурдакова"]
[null,"Леонтьев Н.",80,"КМС","Барнаул","Язовский"]
[null,"Яшин Егор",79,1,"Томск","\"Арба\""]
[null,"Бекенов Ерлан",80,"б.р.","Томск","\"Ариадна\""]
[null,"Иваненко",79,"б.р.","Томск","?"]

{"sheet":"Подростки Жен. скорость","index":11,"n_rows":24,"n_cols":16,"rows_kept":24,"cut":false,"hidden":true,"merged":[]}
[]
[null,null,null,null,"ИТОГОВЫЙ ПРОТОКОЛ"]
[null,null,null,null,"юноши младшая группа"]
[]
["Итог.","Фамилия имя отчество","Год","спорт."," "," ",null,"1/4 финала",null,null,"1/2 финала",null,null,"финал",null,"Вып."]
[null,"год рождения","Рожд.","разр.","Город","Тренер","бал.","прим","место","бал.","прим","место","бал.","прим","место","разр."]
[null,"Куликова Люба",87,"2ю","Томск","Афанасьева"]
[null,"Хорсова Алена",87,"б/р","Томск","Афанасьева"]
[null,"Мареева Ира",88,"б/р","Томск","Афанасьева"]
[null,"Мареева Ира",88,"б/р","Томск","Афанасьева"]
[null,"Зайцева Лиза",87,"2 юн","Кемерово","Ильины"]
[null,"Форманчук Надя",88,"б.р.","Кемерово","Ильины"]
[null,"Форманчук Надя",88,"б.р.","Кемерово","Ильины"]
[null,"Горбунова Вика",88,"б.р.","Томск","Лунева"]
[null,"Павлова Ольга",87,"б.р.","Томск","Лунева"]
[null,"Горохова Катя",90,"б.р.","Новосибирск","Бурдакова"]
[null,"Горохова Катя",90,3,"Новосибирск","Бурдакова"]
[null,"Поздеева Катя",90,"б.р.","Новосибирск","Бурдакова"]
[null,"Гольдман Женя",87,"б.р.","Новосибирск","Бурдакова"]
[null,"Урманчеева Наиля",87,"б.р.","Томск","Немцева"]
[null,"Морозова Кристина",87,"б.р.","Кемерово","Бушуева"]
[null,"Зименс Аня",88,"б.р.","Кемерово","Бушуева"]
[null,"Линник Аня",87,"б.р.","Томск","Карих"]
[null,"Борзова Аня",87,3,"Бийск","Пляскин"]

{"sheet":"Младшие Жен. скорость","index":12,"n_rows":15,"n_cols":16,"rows_kept":15,"cut":false,"hidden":true,"merged":[]}
[]
[null,null,null,null,"ИТОГОВЫЙ ПРОТОКОЛ"]
[null,null,null,null,"юноши младшая группа"]
[]
["Итог.","Фамилия имя отчество","Год","спорт."," "," ",null,"1/4 финала",null,null,"1/2 финала",null,null,"финал",null,"Вып."]
[null,"год рождения","Рожд.","разр.","Город","Тренер","бал.","прим","место","бал.","прим","место","бал.","прим","место","разр."]
[null,"Попельняк Олеся",86,"2ю","Томск","Афанасева"]
[null,"Гаврилюк Катя",86,2,"Кемерово","Ильины"]
[null,"Лунева Ирина",85,"б.р.","Томск","Лунева"]
[null,"Пономарева Валерия",85,2,"Томск","Лунева"]
[null,"Ком Ольга",86,2,"Томск","Шлехт"]
[null,"Рыбалова Оля",85,"б.р.","Томск","Шлехт"]
[null,"Жукова Валя",86,"б.р.","Томск","Карих"]
[null,"Леонтюк Ульяна",86,"б.р.","Томск","Карих"]
[null,"Панова Женя",86,"б.р.","Бийск","Пляскин"]

{"sheet":"Средние Жен. скорость","index":13,"n_rows":13,"n_cols":16,"rows_kept":13,"cut":false,"hidden":true,"merged":[]}
[]
[null,null,null,null,"ИТОГОВЫЙ ПРОТОКОЛ"]
[null,null,null,null,"юноши младшая группа"]
[]
["Итог.","Фамилия имя отчество","Год","спорт."," "," ",null,"1/4 финала",null,null,"1/2 финала",null,null,"финал",null,"Вып."]
[null,"год рождения","Рожд.","разр.","Город","Тренер","бал.","прим","место","бал.","прим","место","бал.","прим","место","разр."]
[null,"Ильина Ксения",83,1,"Томск","Лунева"]
[null,"Гильманова Вероника",84,3,"Новокузнецк","Санников"]
[null,"Дуплинская Юля",83,"КМС","Новокузнецк","Санников"]
[null,"Сиволапова Екатерина",83,"КМС","Новокузнецк","Санников"]
[null,"Бурдакова Юля",83,"КМС","Новосибирск","Бурдакова"]
[null,"Бугрова Таня",83,"б.р.","Томск","Шлехт"]
[null,"Крачковская Инга",84,"б.р.","Кемерово","Бушуева"]

{"sheet":"Старшие Жен. скорость","index":14,"n_rows":10,"n_cols":16,"rows_kept":10,"cut":false,"hidden":true,"merged":[]}
[]
[null,null,null,null,"ИТОГОВЫЙ ПРОТОКОЛ"]
[null,null,null,null,"юноши младшая группа"]
[]
["Итог.","Фамилия имя отчество","Год","спорт."," "," ",null,"1/4 финала",null,null,"1/2 финала",null,null,"финал",null,"Вып."]
[null,"год рождения","Рожд.","разр.","Город","Тренер","бал.","прим","место","бал.","прим","место","бал.","прим","место","разр."]
[null,"Киселева Вероника",82,1,"Кемерово","Ильины"]
[null,"Лунева Лена",81,"КМС","Томск","Лунева"]
[null,"Ларионова Ирина",81,"КМС","Томск","Шлехт"]
[null,"Бадрутдинова Наташа",81,1,"Томск","Шлехт"]

{"sheet":"Взрослые Жен. скорость","index":15,"n_rows":7,"n_cols":16,"rows_kept":7,"cut":false,"hidden":true,"merged":[]}
[]
[null,null,null,null,"ИТОГОВЫЙ ПРОТОКОЛ"]
[null,null,null,null,"юноши младшая группа"]
[]
["Итог.","Фамилия имя отчество","Год","спорт."," "," ",null,"1/4 финала",null,null,"1/2 финала",null,null,"финал",null,"Вып."]
[null,"год рождения","Рожд.","разр.","Город","Тренер","бал.","прим","место","бал.","прим","место","бал.","прим","место","разр."]
[null,"Ларина Лена",79,"б.р.","Томск","Шлехт"]

{"sheet":"Лист2","index":26,"n_rows":0,"n_cols":0,"rows_kept":0,"cut":false,"hidden":false,"merged":[]}